Cogmind - Beta 13 @@@ ROGUE MODE // 2024.04.23 @ 18:03:25 Player: Exceptionally Mediocre Result: Destroyed by S-10 Pest with Light Assault Rifle Performance ------------- Evolutions (0) 0 Regions Visited (2) 400 Robots Destroyed (35) 175 Value Destroyed (559) 559 Prototype IDs (0) 0 Alien Tech Used (0) 0 Bonus (0) 0 TOTAL SCORE: 1134 Bonus ------- None Cogmind --------- Core Integrity 0/250 Matter 298/300 Energy 125/125 System Corruption 1% Temperature Cool (0) Movement Treading (160) Location -10/Mines Parts ------- > --- POWER (1) -------- Light Ion Engine > --- PROPULSION (2) --- Light Treads > --- UTILITY (2) ------ Medium Storage Unit Structural Scanner > --- WEAPON (2) ------- Light Assault Rifle Light Assault Rifle > --- INVENTORY (10) --- Light Ion Engine Light Ion Engine High-capacity Matter Pod (200) Signal Interpreter Improved Terrain Scanner Targeting Computer Spread Laser Hammer Peak State ------------ > --- POWER ------------ Ion Engine > --- PROPULSION ------- Light Treads Light Treads > --- UTILITY ---------- Small Storage Unit Improved Terrain Scanner > --- WEAPON ----------- Assault Rifle Light Assault Rifle > --- INVENTORY -------- Light Ion Engine Light Ion Engine Light Ion Engine Light Ion Engine Small Laser Mining Laser [Rating: 9] Favorites ----------- Power Light Ion Engine Engine Light Ion Engine Propulsion Light Treads Treads Light Treads Utility Structural Scanner Device Structural Scanner Storage Medium Storage Unit Weapon Light Assault Rifle Energy Gun Small Laser Ballistic Gun Light Assault Rifle Launcher Grenade Launcher Build | -11 -10 -10 ------- Run | Yrd Mat Min Slots Evolved . | . . . Power . | . . . Propulsion . | . . . Utility . | . . . Weapon . | . . . Parts Attached 32 | 9 15 8 Power 6 | 1 3 2 Engine 6 | 1 3 2 Core . | . . . Reactor . | . . . Propulsion 7 | 2 3 2 Treads 7 | 2 3 2 Leg . | . . . Wheel . | . . . Hover . | . . . Flight . | . . . Utility 4 | 2 2 . Device 2 | 1 1 . Storage 2 | 1 1 . Processor . | . . . Hackware . | . . . Protection . | . . . Artifact . | . . . Weapon 15 | 4 7 4 Energy Gun 1 | 1 . . Energy Cannon . | . . . Ballistic Gun 10 | 3 5 2 Ballistic Cannon . | . . . Launcher 4 | . 2 2 Special Weapon . | . . . Impact Weapon . | . . . Slashing Weapon . | . . . Piercing Weapon . | . . . Special Melee Weapon . | . . . Unidentified Prototypes . | . . . Parts Lost 8 | . 1 7 Power 2 | . . 2 Propulsion 3 | . . 3 Utility . | . . . Weapon 3 | . 1 2 Highest Loss Streak 5 | . 1 5 To Critical Strikes . | . . . Average Slot Usage (%) 97 | . 99 92 Engine 14 | . 14 14 Treads 26 | . 27 21 Device 14 | . 14 14 Storage 14 | . 14 14 Ballistic Gun 25 | . 27 21 Launcher 2 | . . 6 Naked Turns . | . . . Heaviest Build 20 | 14 19 20 Greatest Support 40 | 40 40 40 Greatest Overweight (x) 3 | 3 . . Average Overweight (x) . | . . . Largest Inventory Capacity 10 | 8 10 10 Average Capacity 9 | 7 9 10 Most Carried 10 | 6 10 10 Average Carried 8 | 3 9 8 Final Capacity 10 | 8 10 10 Final Carried 10 | 6 10 8 Class Distribution -------------------- 67% | Mutant 32% | Scavenger-Mutant Dominant Class ---------------- Mutant | -10/Materials Mutant | -10/Mines Resources | -11 -10 -10 ----------- Run | Yrd Mat Min Matter Collected 1152 | 354 547 251 Remotely . | . . . Salvage Created 732 | 178 455 99 Parts 80 | 20 51 9 Haulers Intercepted 2 | . 2 . Recyclers Shooed 2 | . 1 1 Parts Field Recycled . | . . . Retrieved Matter . | . . . Parts Self-Destructed . | . . . Prevented . | . . . Kills | -11 -10 -10 ------- Run | Yrd Mat Min Combat Hostiles Destroyed 21 | . 11 10 Guns 11 | . 5 6 AOE 10 | . 6 4 Classes Destroyed 11 | 3 6 2 Worker 5 | 2 2 1 Builder 3 | . 3 . Tunneler 4 | 4 . . Hauler 2 | . 2 . Recycler 1 | 1 . . Operator 1 | . 1 . Watcher 1 | . 1 . Swarmer 11 | . 6 5 Grunt 5 | . 5 . Demolisher 2 | . . 2 Assembled 3 | . . 3 Best Kill Streak 7 | 2 7 3 Combat Bots Only 5 | . 5 3 Max Kills in Single Turn 3 | 1 3 3 Gunslinging . | . . . Exploded 3 | . 3 3 Melee . | . . . Uniques/NPCs Destroyed . | . . . Combat | -11 -10 -10 -------- Run | Yrd Mat Min Hostile Shots Fired 91 | . 42 49 Missed 19 | . 13 6 Damage Taken 1284 | . 516 768 Core 255 | . 119 136 Absorbed by Shields . | . . . Regen/Repaired (Parts) 124 | . 124 . Core Remaining (%) 100 | 100 . . Volleys Fired 93 | 16 54 23 Largest 2 | 2 2 2 Hottest 60 | 40 40 60 Shots Fired 175 | 32 101 42 Gun 165 | 32 98 35 Cannon . | . . . Launcher 10 | . 3 7 Special . | . . . Kinetic 165 | 32 98 35 Thermal . | . . . Explosive 10 | . 3 7 Electromagnetic . | . . . Robot Hit Streak 11 | 6 11 7 Robot Miss Streak 4 | 1 4 3 Penetration Max . | . . . Secondary Targets 1 | . . 1 Max Gunslinging Chain 1 | . . 1 Shots Hit Robots 108 | 19 63 26 Core Hits 72 | 9 35 28 Critical Kills . | . . . Critical Parts Destroyed . | . . . Critical Strikes . | . . . Melee Attacks . | . . . Impact . | . . . Slashing . | . . . Piercing . | . . . Sneak Attacks . | . . . Combat Hostiles . | . . . Follow-up Attacks . | . . . Damage Inflicted 1694 | 215 1056 423 Guns 1030 | 215 631 184 Cannons . | . . . Explosions 664 | . 425 239 Melee . | . . . Ramming . | . . . Kinetic 1030 | 215 631 184 Thermal . | . . . Explosive 664 | . 425 239 Electromagnetic . | . . . Impact . | . . . Slashing . | . . . Piercing . | . . . Highest Corruption 1 | . 1 1 Average Corruption 1 | . 1 1 Corruption Purged . | . . . Corruption Blocked . | . . . Effects 5 | . 2 3 Message Errors 2 | . 2 . Heat Flow Errors 2 | . . 2 Data Loss (minor) 1 | . . 1 Overload Shots . | . . . Overflow Damage 121 | . 91 30 Projectiles . | . . . Explosions 121 | . 91 30 Melee . | . . . Knockbacks . | . . . Impact . | . . . Kinetic . | . . . Secondary . | . . . Self-Inflicted Damage 119 | . 114 5 Shots 2 | . 1 1 Rammed . | . . . Targets Rammed . | . . . Kicked . | . . . Crushed . | . . . Highest Temperature 269 | . 18 269 Average Temperature 72 | . 8 123 Received Heat Transfer 174 | . 174 . Siege Activations . | . . . Robots Corrupted . | . . . Combat Hostiles . | . . . Parts Fried . | . . . Impact Corruptions . | . . . Robots Melted . | . . . Combat Hostiles . | . . . Parts Melted . | . . . Heat Transferred . | . . . Parts Sabotaged . | . . . Parts Stolen . | . . . Parts Stripped . | . . . Power Chain Reactions . | . . . Alert | -11 -10 -10 ------- Run | Yrd Mat Min Peak Influence 278 | 35 278 210 Initial 72 | . 22 72 Average 137 | 13 159 160 Maximum Alert Level 1 | . 1 1 Low Security (%) 72 | 100 59 87 Level 1 27 | . 40 12 Level 2 . | . . . Level 3 . | . . . Level 4 . | . . . Level 5 . | . . . High Security . | . . . Max Security . | . . . Squads Dispatched 3 | . 3 . Investigation 2 | . 2 . Extermination . | . . . Reinforcement 1 | . 1 . Assault . | . . . Garrison . | . . . Intercept . | . . . Searches Triggered . | . . . Construction Impeded . | . . . Haulers Reinforced . | . . . Active Scanning Responses . | . . . Cargo Convoy Interrupts . | . . . Stealth | -11 -10 -10 --------- Run | Yrd Mat Min Distress Signals 1 | . 1 . Communications Jammed . | . . . Distress Signals . | . . . Times Spotted 30 | . 18 12 Peak Tracking Total 3 | . 3 3 Tactical Retreats 3 | . 2 1 Traps | -11 -10 -10 ------- Run | Yrd Mat Min Traps Triggered 2 | . 2 . Indirectly . | . . . Trap Hack Attempts . | . . . Triggered . | . . . Disarmed . | . . . Reprogrammed . | . . . Reused . | . . . Traps Extracted . | . . . Installed . | . . . Triggered . | . . . Machines | -11 -10 -10 ---------- Run | Yrd Mat Min Machines Disabled 1 | . 1 . Max in Single Turn 1 | . 1 . Machines Repaired . | . . . Machines Dismantled . | . . . Machines Sabotaged 1 | . 1 . Overloaded Fab Kills . | . . . Hacking | -11 -10 -10 --------- Run | Yrd Mat Min Machines Accessed 8 | . 8 . Terminals 5 | . 5 . Fabricators . | . . . Repair Stations 1 | . 1 . Recycling Units 2 | . 2 . Scanalyzers . | . . . Garrison Access . | . . . Total Hacks 20 | . 20 . Successful 13 | . 13 . Failed 7 | . 7 . Catastrophic . | . . . Database Lockouts . | . . . Manual 14 | . 14 . Terminals 13 | . 13 . Fabricators . | . . . Repair Stations 3 | . 3 . Recycling Units 4 | . 4 . Scanalyzers . | . . . Garrison Access . | . . . Terminal Hacks . | . . . Fabricator Hacks . | . . . Repair Station Hacks 2 | . 2 . Scan Component 1 | . 1 . Repair 1 | . 1 . Recycling Unit Hacks 3 | . 3 . Retrieve Components 3 | . 3 . Scanalyzer . | . . . Garrison Access Hacks . | . . . Unauthorized Hacks 8 | . 8 . Terminals 8 | . 8 . Assimilate 1 | . 1 . Botnet 5 | . 5 . Operators 1 | . 1 . Sabotage 1 | . 1 . Fabricators . | . . . Repair Stations . | . . . Recycling Units . | . . . Scanalyzers . | . . . Garrison Access . | . . . Data Cores Recovered . | . . . Used . | . . . Hacking Detections 5 | . 5 . Full Trace Events 2 | . 2 . Feedback Events 1 | . 1 . Corruption 1 | . 1 . Feedback Blocked . | . . . Robot Schematics Acquired . | . . . Robots Built . | . . . Authchips . | . . . Time . | . . . Total Robot Build Rating . | . . . Part Schematics Acquired . | . . . Parts Built . | . . . Authchips . | . . . Time . | . . . Total Part Build Rating . | . . . Parts Repaired 1 | . 1 . Time 13 | . 13 . Parts Recycled . | . . . Recycled Matter . | . . . Retrieved Matter . | . . . Retrieved Components 10 | . 10 . Parts Scanalyzed . | . . . Part Schematics Acquired . | . . . Parts Damaged . | . . . Bothacking | -11 -10 -10 ------------ Run | Yrd Mat Min Used RIF Installer . | . . . Robots Hacked . | . . . Non-combat . | . . . Combat . | . . . Robot Hacks Applied . | . . . Relay Couplers Released . | . . . Fabnet Peak Effective % . | . . . Robots Rewired . | . . . Allies Hacked . | . . . Hacks Repelled . | . . . Allies | -11 -10 -10 -------- Run | Yrd Mat Min Total Allies . | . . . Largest Group . | . . . Highest-Rated Group . | . . . Highest-Rated Ally . | . . . Total Orders . | . . . Ally Attacks . | . . . Total Damage . | . . . Kills . | . . . Allies Corrupted . | . . . Allies Melted . | . . . Intel | -11 -10 -10 ------- Run | Yrd Mat Min Robot Analysis Total . | . . . Derelict Logs Recovered 1 | . . 1 Drone Launches . | . . . Drone Recoveries . | . . . Exploration | -11 -10 -10 ------------- Run | Yrd Mat Min Turns Passed 1525 | 232 912 381 Spaces Moved 746 | 108 448 190 Core 10 | 10 . . Treads 736 | 98 448 190 Legs . | . . . Wheels . | . . . Hover . | . . . Flight . | . . . Fastest Speed 50 | 50 160 160 Average Speed 159 | 157 160 160 Slowest Speed 200 | 200 160 160 Overloaded Moves . | . . . Propulsion Burnouts . | . . . Robots Hopped . | . . . Cave-ins Triggered . | . . . Exploration Rate (%) 45 | 7 78 50 Regions Visited 2 Branch Regions 1 Pre-discovered Areas 1 | . . 1 Known Exits Taken . | . . . Unknown Exits Taken 2 | 1 1 . Scrap Searched 1 | . . 1 Spaces Dug 8 | . 8 . Terrain Destroyed 75 | . 52 23 Melee . | . . . Projectile . | . . . AOE 75 | . 52 23 Terrain Rammed . | . . . Walls Destroyed . | . . . Machines Disabled . | . . . Actions | -11 -10 -10 --------- Run | Yrd Mat Min Total 929 | 137 558 234 Wait 16 | . 11 5 Move 744 | 107 447 190 Hop . | . . . Pick Up 26 | 5 15 6 Fast Attach 11 | 7 4 . Attach 7 | . 1 6 Detach 1 | . 1 . Swap 14 | 2 10 2 Drop 17 | . 15 2 Fire 93 | 16 54 23 Melee . | . . . Ram . | . . . Kick . | . . . Crush . | . . . Escape Stasis . | . . . Rewire . | . . . Trap . | . . . Miscellaneous . | . . . Route ------- -11/Scrapyard -10/Materials (discovered 5 exits: [*Mat x2] / [*Min x2] / [Sub]) -10/Mines (discovered 2 exits: [*Mat] / [Sub]) History --------- Turn | Location | Event 15 | -11/Scrapyard | Discovered new exit (range 16) 233 | -11/Scrapyard | Entered Materials 306 | -10/Materials | Build established: Mutant 572 | -10/Materials | Discovered new exit (range 6) 654 | -10/Materials | Discovered new exit (range 6) 908 | -10/Materials | Repaired Lgt. Treads 965 | -10/Materials | Discovered new exit (range 5) 1020 | -10/Materials | Discovered new exit (range 12) 1101 | -10/Materials | Build established: Scavenger-Mutant 1111 | -10/Materials | Discovered new exit (range 13) 1145 | -10/Materials | Entered Mines 1146 | -10/Mines | Assembled infested the area 1147 | -10/Mines | Core integrity fell below 50% 1218 | -10/Mines | Discovered new exit (range 10) 1349 | -10/Mines | Lost 5 parts (1p2n2w) 1391 | -10/Mines | Core integrity fell below 20% 1498 | -10/Mines | Discovered new exit (range 15) 1518 | -10/Mines | Learned location of Storage (-7) 1526 | -10/Mines | Destroyed by S-10 Pest with Light Assault Rifle Last Messages --------------- 01391_ as-98846 destroyed. 01391_ U-05 Engineer lays Concrete. 01400_ Extracted 45 matter. 01401_ Acquired 23 matter. 01408_ Acquired 24 matter. 01409_ Acquired 10 matter. 01413_ Acquired 34 matter. 01427_ Acquired Lgt. Ion Engine. 01435_ R-06 Scavenger collects Wheel. 01438_ R-06 Scavenger collects Med. Matter Pod. 01439_ K-01 Serf collects debris. 01440_ R-06 Scavenger collects Sml. Matter Pod. 01443_ Acquired 2 matter. 01462_ Lgt. Ion Engine destroyed. 01470_ S-10 Pest destroyed. 01481_ Acquired 20 matter. 01485_ Acquired Lgt. Ion Engine. 01498_ EXIT=FOUND 01518_ Acquired derelict log, extracted data. World map updated: -7/Storage. Map ----- +----------------------------------------------------+ | | | | | | | | | | | | | | | | | | | | | | | | | | | | | | | ????????????????######?????????????????????????? | | ?????????????#########?????????????????????????? | | ????????????##### #?????????????????????????? | | ????????????### ???????????????????????????? | | ????????????## < ???????????????????????????? | | ????????????## ????????????????????????????? | | ???????????### #????????????????????????????? | | ???????????### ###???????????????????????????? | | ???????????## #############??###????????????? | | ??????????### ########### ###???????????? | | ??????????### @ t ####?????????? | | ?????????### #### ##### ##?????????? | | ?## ######## #### ######????? #?????????? | | ?## ####### ##### ##?????????????????????? | | ?## ###### ##?????????????????????? | | ?###?##### ####?##s##?????????????????????? | | ?????##### ### ?? ##?????????????????????? | | ????????## ####???#####?????????????????????? | | ????????### ###????#####?????????????????????? | | ????????#### ##???????????????????????????????? | | ?????????### ##???????????????????????????????? | | ????????### ##??????????????????????????#####? | | ???????#### ##??????????????????????????#####? | | ??????#### ##??????????????????????????# ? | | ??????### #####????????????????????????? ##? | | ??????## #####????????????????????????? ##? | | ??????## # ????????????????????????? ### | | ??????#####%## ##???????????????????####### ### | | ??????#####%## ##??????????????????######## % ## | | ?????????##== ##??????????????????### ## | | ?????????##### ###?????????????????## % ## | | ?????????##### ####?????##########?## ## | | ???????????### ##################### ## | | ??????????### ###### ####= ##### # # | | ?????????#### #### #! ### # | +----------------------------------------------------+ Best States ------------- Heat Dissipation 25 Energy Generation 10 Energy Capacity 250 Matter Stores 300 Matter Capacity 300 Sight Range 16 Terrain Scan Range 16 Terrain Scan Density 10 Evasion (%) 40 Recoil Reduction 2 Item Schematics ----------------- None Robot Schematics ------------------ None Fabricated ------------ Nothing Alien Tech Used ----------------- None Achievements -------------- Brute Force Challenges ------------ None Game ------ Seed DroneDerelictClaws Manual? 0 Play Time 00:16:54 Cumulative 101.0 hours Start 2024.04.23 @ 17:42:41 End 2024.04.23 @ 18:03:25 Sessions 1 Manual Loads 0 Difficulty Rogue Special Mode None Game No. 117 Rogue 117 Adventurer 0 Explorer 0 Win Type - Total 0 Types 0/0/0/0/0/0/0/0/0 Lore% 27 Gallery% 53 Achievement% 40 Wizard Run 0 Options --------- Layout 1 ASCII 0 Keyboard 1 Movement Vi Keybinds 0 Fullscreen 1 Font 24/Smallcaps Map View 50x35 Zoom Use 0% Tactical HUD 1 Map Filters NONE Filters NONE Steam 1 RUN: 8e74e278-3481-43bc-b9ea-a615fe4f6a3f